fUST/lending_fUST_20250725
["ID","MTS","AMOUNT","RATE_DAILY","PERIOD"]
[374823904,1753451445467,-151.0,0.00021698,2]
[374823907,1753451445482,-151.0,0.00021698,2]
[374823909,1753451445495,-151.0,0.00021698,2]
[374823912,1753451445510,-151.0,0.00021698,2]
[374823914,1753451445524,-151.0,0.00021698,2]
[374823918,1753451445541,-152.193325,0.00021698,2]
[374823920,1753451445555,-151.0,0.00021698,2]
[374823923,1753451445569,-151.513923,0.00021698,2]
[374823925,1753451445584,-229.107257,0.00021698,2]
[374823928,1753451445598,-151.0,0.00021698,2]
[374823930,1753451445612,-151.0,0.00021698,2]
[374823933,1753451445625,-151.0,0.00021698,2]
[374823935,1753451445640,-800.0,0.00021703,2]
[374823938,1753451445655,-3942.302754,0.00021753,2]
[374823940,1753451445669,-3951.28442212,0.00021808,2]
[374823943,1753451445684,-3301.33283952,0.00021882,2]
[374823945,1753451445696,-151.0,0.000219,3]
[374823947,1753451445708,-481.92564782,0.00021912,2]
[374823950,1753451445719,-3115.91010818,0.00021912,2]
[374823952,1753451445735,-460.0,0.00021917,2]
[374823954,1753451445748,-460.0,0.00021917,2]
[374823957,1753451445761,-460.0,0.00021917,2]
[374823959,1753451445773,-423.4382081,0.00021917,2]
[374823961,1753451445787,-4986.57,0.00021917,2]
[374823964,1753451445801,-500.0,0.00021917,2]
[374823966,1753451445816,-500.0,0.00021917,2]
[374823969,1753451445831,-500.0,0.00021917,2]
[374823971,1753451445844,-989.91,0.00021917,2]
[374823973,1753451445854,-500.0,0.00021917,2]
[374823976,1753451445865,-500.0,0.00021917,2]
[374823978,1753451445877,-151.0,0.00021917,2]
[374823980,1753451445889,-151.0,0.00021917,2]
[374823983,1753451445904,-1659.53,0.00021917,2]
[374823985,1753451445918,-694.52,0.00021917,2]
[374823987,1753451445929,-860.15,0.00021917,2]
[374823990,1753451445943,-460.0,0.00021917,2]
[374823992,1753451445955,-1712.48,0.00021917,2]
[374823994,1753451445968,-460.0,0.00021917,2]
[374823997,1753451445984,-565.62,0.00021917,2]
[374823999,1753451445995,-2558.67,0.00021917,2]
[374824001,1753451446006,-2196.36,0.00021917,2]
[374824003,1753451446018,-2412.9,0.00021917,2]
[374824005,1753451446029,-487.91433573,0.00021917,2]
[374824008,1753451446041,-1466.29,0.00021917,2]
[374824010,1753451446052,-2067.97,0.00021917,2]
[374824012,1753451446065,-460.0,0.00021917,2]
[374824014,1753451446077,-460.0,0.00021917,2]
[374824017,1753451446089,-258.29579809,0.00021917,2]
[374824019,1753451446101,-638.63,0.00021917,2]
[374824021,1753451446113,-1222.3,0.00021917,2]
[374824024,1753451446125,-1635.82,0.00021917,2]
[374824026,1753451446138,-1300.64,0.00021917,2]
[374824028,1753451446150,-460.0,0.00021917,2]
[374824030,1753451446162,-193.64,0.00021917,2]
[374824033,1753451446174,-460.0,0.00021917,2]
[374824035,1753451446186,-2098.03,0.00021917,2]
[374824037,1753451446197,-151.0,0.00021918,2]
[374824039,1753451446208,-200.0,0.00021918,2]
[374824041,1753451446220,-150.12259052,0.00021918,2]
[374824044,1753451446235,-2165.37,0.00022,7]
[374824046,1753451446246,-45135.22,0.00022,2]
[374824048,1753451446258,-151.0,0.00022,2]
[374824051,1753451446270,-320.47,0.00022,2]
[374824053,1753451446282,-156.0,0.00022,2]
[374824055,1753451446294,-3301.33283952,0.00022027,2]
[374824058,1753451446307,-429.8269109,0.00022055,2]
[374824061,1753451446320,-429.8269109,0.00022055,2]
[374824063,1753451446332,-429.8269109,0.00022055,2]
[374824065,1753451446344,-877.54,0.00022055,2]
[374824067,1753451446355,-274.2,0.00022127,5]
[374824070,1753451446368,-1000.0,0.00022154,2]
[374824072,1753451446380,-460.0,0.00022191,2]
[374824074,1753451446391,-460.0,0.00022191,2]
[374824076,1753451446403,-151.0,0.00022191,7]
[374824079,1753451446414,-460.0,0.00022191,2]
[374824081,1753451446426,-4986.57,0.00022191,2]
[374824083,1753451446437,-989.91,0.00022191,2]
[374824085,1753451446448,-1659.53,0.00022191,2]
[374824088,1753451446460,-694.52,0.00022191,2]
[374824090,1753451446474,-860.15,0.00022191,2]
[374824092,1753451446487,-151.95,0.00022191,2]
[374824095,1753451446498,-1712.48,0.00022191,2]
[374824097,1753451446510,-460.0,0.00022191,2]
[374824099,1753451446522,-565.62,0.00022191,2]
[374824102,1753451446537,-2558.67,0.00022191,2]
[374824104,1753451446549,-151.0,0.00022191,7]
[374824106,1753451446560,-151.0,0.00022191,7]
[374824108,1753451446572,-2196.36,0.00022191,2]
[374824111,1753451446583,-2412.9,0.00022191,2]
[374824113,1753451446595,-1466.29,0.00022191,2]
[374824115,1753451446607,-2067.97,0.00022191,2]
[374824117,1753451446619,-378.11030352,0.00022191,2]
[374824119,1753451446630,-460.0,0.00022191,2]
[374824122,1753451446641,-638.63,0.00022191,2]
[374824123,1753451446651,-1222.3,0.00022191,2]
[374824139,1753451446789,-186.613922,0.00022191,7]
[374824142,1753451446804,-1635.82,0.00022191,2]
[374824144,1753451446814,-1300.64,0.00022191,2]
[374824146,1753451446824,-460.0,0.00022191,2]
[374824148,1753451446833,-151.0,0.00022191,7]
[374824150,1753451446843,-460.0,0.00022191,2]
[374824152,1753451446852,-2098.03,0.00022191,2]
[374824154,1753451446862,-3301.33283952,0.00022194,2]
[374824156,1753451446871,-151.0,0.000222,8]
[374824158,1753451446881,-560.0,0.00022216,2]
[374824160,1753451446890,-500.0,0.00022221,2]
[374824162,1753451446900,-1000.0,0.00022221,2]
[374824164,1753451446910,-500.0,0.00022221,2]
[374824166,1753451446919,-1000.0,0.00022221,2]
[374824168,1753451446928,-1004.19548328,0.00022221,2]
[374824170,1753451446937,-1001.10459567,0.00022221,2]
[374824172,1753451446947,-500.0,0.00022221,2]
[374824174,1753451446956,-1000.0,0.00022221,2]
[374824176,1753451446965,-1000.0,0.00022221,2]
[374824178,1753451446978,-1000.0,0.00022221,2]
[374824180,1753451446988,-500.0,0.00022221,2]
[374824182,1753451446998,-1000.0,0.00022221,2]
[374824184,1753451447007,-1000.0,0.00022221,2]
[374824186,1753451447016,-1000.0,0.00022221,2]
[374824188,1753451447026,-1000.0,0.00022221,2]
[374824190,1753451447035,-1000.0,0.00022221,2]
[374824192,1753451447044,-1000.0,0.00022221,2]
[374824194,1753451447054,-216.08866918,0.00022221,2]
[374824196,1753451447068,-501.48761306,0.00022221,2]
[374824198,1753451447078,-524.31518237,0.00022221,2]
[374824200,1753451447088,-189.96740107,0.00022221,2]
[374824203,1753451447098,-1078.78157681,0.00022221,2]
[374824205,1753451447107,-1000.0,0.00022221,2]
[374824207,1753451447117,-1006.76194603,0.00022221,2]
[374824209,1753451447126,-526.56501023,0.00022221,2]
[374824211,1753451447136,-1000.0,0.00022221,2]
[374824213,1753451447145,-1000.0,0.00022221,2]
[374824215,1753451447155,-1139.9076075,0.00022221,2]
[374824217,1753451447164,-151.0,0.00022221,7]
[374824219,1753451447175,-2667.67817631,0.00022229,2]
[374824221,1753451447184,-151.0,0.00022246,2]
[374824223,1753451447194,-25000.0,0.00022246,2]
[374824225,1753451447204,-151.0,0.00022246,7]
[374824227,1753451447213,-151.370444,0.00022246,7]
[374824229,1753451447225,-151.0,0.00022246,7]
[374824231,1753451447235,-151.0,0.00022246,7]
[374824233,1753451447245,-1926.34862502,0.0002235,2]
[374824235,1753451447254,-577.7720337,0.00022438,2]
[374824237,1753451447264,-577.7720337,0.00022438,2]
[374824239,1753451447274,-569.6176267,0.00022438,2]
[374824241,1753451447283,-306.0,0.00022438,2]
[374824243,1753451447293,-460.0,0.00022465,2]
[374824245,1753451447302,-460.0,0.00022465,2]
[374824247,1753451447312,-460.0,0.00022465,2]
[374824249,1753451447321,-4986.57,0.00022465,2]
[374824251,1753451447330,-989.91,0.00022465,2]
[374824252,1753451447340,-151.0,0.00022465,7]
[374824254,1753451447350,-151.0,0.00022465,7]
[374824256,1753451447359,-1659.53,0.00022465,2]
[374824258,1753451447369,-694.52,0.00022465,2]
[374824260,1753451447378,-860.15,0.00022465,2]
[374824262,1753451447387,-1712.48,0.00022465,2]
[374824264,1753451447397,-155.46457132,0.00022465,2]
[374824287,1753451447616,-460.0,0.00019452,2]
[374824289,1753451447625,-460.0,0.00019726,2]
[374824292,1753451447635,-211.640718,0.0002,2]
[374824294,1753451447647,-248.359282,0.0002,2]
[374824296,1753451447669,-460.0,0.00020273,2]
[374824298,1753451447684,-460.0,0.00020547,2]
[374824300,1753451447694,-151.0,0.00021698,2]
[374824302,1753451447703,-149.92296234,0.00021698,2]
[374824304,1753451447715,-1.07703766,0.00021698,2]
[374824306,1753451447728,-386.16236234,0.00022465,2]
[374824308,1753451447751,-1008.60306634,0.00022465,2]
[374824310,1753451447762,-460.0,0.00022465,2]
[374824312,1753451447772,-565.62,0.00022465,2]
[374824314,1753451447782,-2558.67,0.00022465,2]
[374824316,1753451447791,-230.13429891,0.00022465,2]
[374824331,1753451447914,-151.0,0.00021698,2]
[374824333,1753451447924,-151.0,0.00021698,2]
[374824335,1753451447933,-151.0,0.00022221,7]
[374824337,1753451447943,-1966.22570109,0.00022465,2]
[374824339,1753451447952,-2412.9,0.00022465,2]
[374824341,1753451447962,-1466.29,0.00022465,2]
[374824343,1753451447973,-2067.97,0.00022465,2]
[374824345,1753451447983,-454.04014626,0.00022465,2]
[374824347,1753451447994,-5.95985374,0.00022465,2]
[374824349,1753451448003,-638.63,0.00022465,2]
[374824351,1753451448013,-1222.3,0.00022465,2]
[374824353,1753451448022,-1635.82,0.00022465,2]
[374824355,1753451448031,-1300.64,0.00022465,2]
[374824357,1753451448041,-460.0,0.00022465,2]
[374824359,1753451448052,-460.0,0.00022465,2]
[374824361,1753451448062,-2098.03,0.00022465,2]
[374824363,1753451448072,-320.47,0.000225,2]
[374824365,1753451448082,-3301.33283952,0.00022537,2]
[374824367,1753451448092,-151.0,0.000226,6]
[374824369,1753451448102,-400.0,0.00022603,2]
[374824371,1753451448112,-207.2232168,0.00022603,2]
[374824373,1753451448122,-159.9857365,0.00022603,2]
[374824375,1753451448131,-306.0,0.00022603,2]
[374824377,1753451448141,-577.7720337,0.00022603,2]
[374824379,1753451448151,-159.9857365,0.00022603,2]
[374824382,1753451448162,-577.7720337,0.00022603,2]
[374824384,1753451448172,-159.9857365,0.00022603,2]
[374824386,1753451448182,-577.7720337,0.00022603,2]
[374824388,1753451448192,-159.9857365,0.00022603,2]
[374824390,1753451448202,-153.0,0.00022603,2]
[374824392,1753451448211,-159.9857365,0.00022603,2]
[374824394,1753451448221,-577.7720337,0.00022603,2]
[374824396,1753451448231,-274.2,0.00022622,5]
[374824398,1753451448241,-823.0,0.00022626,2]
[374824400,1753451448250,-288.83,0.00022739,2]
[374824402,1753451448260,-151.0,0.00022739,7]
[374824404,1753451448269,-460.0,0.00022739,2]
[374824406,1753451448278,-416.4,0.00022739,2]
[374824408,1753451448288,-4646.12371782,0.00022739,2]
[374824412,1753451448323,-151.0,0.00021698,2]
[374824414,1753451448333,-151.0,0.00021698,2]
[374824416,1753451448354,-340.44628218,0.00022739,2]
[374824418,1753451448364,-989.91,0.00022739,2]
[374824420,1753451448374,-1659.53,0.00022739,2]
[374824421,1753451448384,-860.15,0.00022739,2]
[374824424,1753451448394,-1712.48,0.00022739,2]
[374824426,1753451448404,-460.0,0.00022739,2]
[374824428,1753451448413,-565.62,0.00022739,2]
[374824429,1753451448424,-2558.67,0.00022739,2]
[374824432,1753451448434,-2196.36,0.00022739,2]
[374824434,1753451448444,-2412.9,0.00022739,2]
[374824436,1753451448453,-1466.29,0.00022739,2]
[374824438,1753451448463,-2067.97,0.00022739,2]
[374824440,1753451448474,-460.0,0.00022739,2]
[374824442,1753451448483,-638.63,0.00022739,2]
[374824444,1753451448492,-1222.3,0.00022739,2]
[374824446,1753451448502,-1635.82,0.00022739,2]
[374824448,1753451448511,-1300.64,0.00022739,2]
[374824450,1753451448520,-460.0,0.00022739,2]
[374824452,1753451448532,-460.0,0.00022739,2]
[374824454,1753451448541,-2098.03,0.00022739,2]
[374824456,1753451448550,-660.0,0.00022764,2]
[374824458,1753451448560,-1500.0,0.00022768,2]
[374824459,1753451448569,-1550.03745747,0.00022768,2]
[374824461,1753451448579,-503.02000038,0.00022768,2]
[374824464,1753451448590,-500.0,0.00022768,2]
[374824466,1753451448599,-500.0,0.00022768,2]
[374824468,1753451448611,-513.72045867,0.00022768,2]
[374824470,1753451448620,-1500.0,0.00022768,2]
[374824472,1753451448629,-151.0,0.00022794,2]
[374824473,1753451448638,-25000.0,0.00022794,2]
[374824475,1753451448647,-151.0,0.00022794,7]
[374824477,1753451448657,-800.0,0.00022799,2]
[374824479,1753451448666,-151.0,0.00022903,7]
[374824482,1753451448676,-256.429972,0.00022903,7]
[374824483,1753451448686,-648.0,0.00022903,2]
[374824486,1753451448695,-2157.0,0.00022903,2]
[374824488,1753451448705,-969.0,0.00022903,2]
[374824489,1753451448715,-3301.33283952,0.00022924,2]
[374824492,1753451448724,-160.77777081,0.00022959,2]
[374824494,1753451448734,-320.47,0.0002298,2]
[374824496,1753451448744,-429.8269109,0.00022986,2]
[374824498,1753451448753,-429.8269109,0.00022986,2]
[374824500,1753451448763,-429.8269109,0.00022986,2]
[374824502,1753451448772,-429.8269109,0.00022986,2]
[374824504,1753451448782,-336.17,0.00023,2]
[374824506,1753451448791,-167.0,0.00023,7]
[374824508,1753451448801,-160.0,0.00023,2]
[374824510,1753451448810,-526.31,0.00023013,2]
[374824512,1753451448820,-4986.57,0.00023013,2]
[374824514,1753451448830,-989.91,0.00023013,2]
[374824516,1753451448839,-1659.53,0.00023013,2]
[374824518,1753451448849,-860.15,0.00023013,2]
[374824520,1753451448858,-1712.48,0.00023013,2]
[374824522,1753451448867,-268.80944798,0.00023013,2]
[374824524,1753451448877,-565.62,0.00023013,2]
[374824526,1753451448887,-2558.67,0.00023013,2]
[374824528,1753451448896,-151.0,0.00023013,7]
[374824530,1753451448906,-151.0,0.00023013,7]
[374824532,1753451448916,-2196.36,0.00023013,2]
[374824534,1753451448926,-2412.9,0.00023013,2]
[374824536,1753451448935,-1466.29,0.00023013,2]
[374824538,1753451448945,-2067.97,0.00023013,2]
[374824540,1753451448954,-638.63,0.00023013,2]
[374824542,1753451448964,-1222.3,0.00023013,2]
[374824544,1753451448973,-1635.82,0.00023013,2]
[374824546,1753451448983,-1300.64,0.00023013,2]
[374824548,1753451448993,-460.0,0.00023013,2]
[374824550,1753451449006,-460.0,0.00023013,2]
[374824552,1753451449015,-2098.03,0.00023013,2]
[374824554,1753451449025,-429.8269109,0.00023014,2]
[374824556,1753451449034,-429.8269109,0.00023014,2]
[374824558,1753451449044,-156.0,0.00023014,7]
[374824560,1753451449053,-223.0315306,0.00023067,2]
[374824562,1753451449063,-160.77777081,0.00023096,2]
[374824564,1753451449072,-274.2,0.00023117,5]
[374824566,1753451449082,-786.36,0.00023167,2]
[374824568,1753451449092,-2165.37,0.000232,7]
[374824570,1753451449102,-3301.33283952,0.0002322,2]
[374824572,1753451449112,-160.77777081,0.00023233,2]
[374824574,1753451449121,-178.3051933,0.0002326,2]
[374824576,1753451449131,-786.36,0.00023267,4]
[374824578,1753451449140,-4986.57,0.00023287,2]
[374824580,1753451449149,-989.91,0.00023287,2]
[374824582,1753451449159,-151.0,0.00023287,7]
[374824584,1753451449169,-151.0,0.00023287,7]
[374824586,1753451449179,-1659.53,0.00023287,2]
[374824588,1753451449189,-860.15,0.00023287,2]
[374824590,1753451449200,-1712.48,0.00023287,2]
[374824592,1753451449210,-565.62,0.00023287,2]
[374824594,1753451449220,-2558.67,0.00023287,2]
[374824596,1753451449231,-2196.36,0.00023287,2]
[374824598,1753451449241,-2412.9,0.00023287,2]
[374824600,1753451449251,-1466.29,0.00023287,2]
[374824602,1753451449262,-2067.97,0.00023287,2]
[374824604,1753451449272,-638.63,0.00023287,2]
[374824606,1753451449282,-1222.3,0.00023287,2]
[374824608,1753451449292,-1635.82,0.00023287,2]
[374824610,1753451449302,-1300.64,0.00023287,2]
[374824623,1753451449311,-460.0,0.00023287,2]
[374824626,1753451449445,-460.0,0.00023287,2]
[374824628,1753451449455,-2098.03,0.00023287,2]
[374824630,1753451449464,-45135.22,0.000233,2]
[374824632,1753451449475,-760.0,0.00023312,2]
[374824634,1753451449485,-1500.0,0.00023316,2]
[374824636,1753451449495,-219.49633619,0.00023342,2]
[374824638,1753451449504,-786.36,0.00023367,3]
[374824640,1753451449514,-160.77777081,0.0002337,2]
[374824642,1753451449524,-2667.67817631,0.00023393,2]
[374824644,1753451449537,-178.3051933,0.00023425,2]
[374824646,1753451449546,-178.3051933,0.00023425,2]
[374824648,1753451449556,-178.3051933,0.00023425,2]
[374824650,1753451449565,-306.0,0.00023425,2]
[374824652,1753451449576,-178.3051933,0.00023425,2]
[374824654,1753451449585,-356.6103866,0.00023425,2]
[374824656,1753451449595,-159.9857365,0.00023425,2]
[374824658,1753451449605,-178.3051933,0.00023425,2]
[374824660,1753451449615,-356.6103866,0.00023425,2]
[374824662,1753451449626,-159.9857365,0.00023425,2]
[374824664,1753451449635,-153.0,0.00023425,2]
[374824665,1753451449646,-159.9857365,0.00023425,2]
[374824667,1753451449656,-178.3051933,0.00023425,2]
[374824669,1753451449667,-577.7720337,0.00023425,2]
[374824671,1753451449676,-319.971473,0.00023425,2]
[374824673,1753451449686,-178.3051933,0.00023425,2]
[374824675,1753451449696,-577.7720337,0.00023425,2]
[374824677,1753451449706,-159.9857365,0.00023425,2]
[374824679,1753451449716,-1155.3151325,0.00023425,2]
[374824681,1753451449727,-178.3051933,0.00023425,2]
[374824684,1753451449737,-159.680395,0.00023425,2]
[374824685,1753451449747,-178.3051933,0.00023425,2]
[374824687,1753451449756,-577.7720337,0.00023425,2]
[374824690,1753451449766,-159.9857365,0.00023425,2]
[374824692,1753451449776,-159.9857365,0.00023425,2]
[374824693,1753451449785,-178.3051933,0.00023425,2]
[374824695,1753451449795,-153.0,0.00023425,2]
[374824697,1753451449804,-419.2959413,0.00023425,2]
[374824700,1753451449814,-577.7720337,0.00023425,2]
[374824702,1753451449823,-178.3051933,0.00023425,2]
[374824703,1753451449833,-159.9857365,0.00023425,2]
[374824705,1753451449843,-319.971473,0.00023425,2]
[374824707,1753451449852,-178.3051933,0.00023425,2]
[374824709,1753451449861,-153.0,0.00023425,2]
[374824711,1753451449879,-577.7720337,0.00023425,2]
[374824713,1753451449899,-178.3051933,0.00023425,2]
[374824715,1753451449909,-577.7720337,0.00023425,2]
[374824717,1753451449920,-159.9857365,0.00023425,2]
[374824719,1753451449930,-153.0,0.00023425,2]
[374824721,1753451449940,-159.9857365,0.00023425,2]
[374824723,1753451449949,-577.7720337,0.00023425,2]
[374824725,1753451449959,-178.3051933,0.00023425,2]
[374824727,1753451449969,-577.7720337,0.00023425,2]
[374824729,1753451449981,-178.3051933,0.00023425,2]
[374824731,1753451449991,-319.971473,0.00023425,2]
[374824733,1753451450000,-178.3051933,0.00023425,2]
[374824735,1753451450010,-153.0,0.00023425,2]
[374824737,1753451450019,-577.7720337,0.00023425,2]
[374824739,1753451450029,-159.9857365,0.00023425,2]
[374824741,1753451450039,-577.7720337,0.00023425,2]
[374824743,1753451450049,-175.7382008,0.00023425,2]
[374824745,1753451450058,-159.9857365,0.00023425,2]
[374824747,1753451450068,-178.3051933,0.00023425,2]
[374824749,1753451450078,-159.9857365,0.00023425,2]
[374824751,1753451450089,-577.7720337,0.00023425,2]
[374824753,1753451450099,-153.0,0.00023425,2]
[374824755,1753451450109,-159.9857365,0.00023425,2]
[374824757,1753451450119,-178.3051933,0.00023425,2]
[374824759,1753451450128,-577.7720337,0.00023425,2]
[374824761,1753451450138,-159.9857365,0.00023425,2]
[374824763,1753451450149,-153.0,0.00023425,2]
[374824765,1753451450159,-178.3051933,0.00023425,2]
[374824767,1753451450170,-306.0,0.00023425,2]
[374824769,1753451450180,-159.9857365,0.00023425,2]
[374824771,1753451450190,-178.3051933,0.00023425,2]
[374824773,1753451450201,-577.7720337,0.00023425,2]
[374824775,1753451450211,-159.9857365,0.00023425,2]
[374824777,1753451450220,-153.0,0.00023425,2]
[374824779,1753451450236,-178.3051933,0.00023425,2]
[374824781,1753451450246,-1155.5440674,0.00023425,2]
[374824783,1753451450255,-178.3051933,0.00023425,2]
[374824785,1753451450265,-159.9857365,0.00023425,2]
[374824787,1753451450275,-577.7720337,0.00023425,2]
[374824789,1753451450285,-153.0,0.00023425,2]
[374824791,1753451450295,-159.9857365,0.00023425,2]
[374824793,1753451450305,-358.530955,0.00023425,2]
[374824795,1753451450314,-159.9857365,0.00023425,2]
[374824797,1753451450324,-178.3051933,0.00023425,2]
[374824799,1753451450333,-153.0,0.00023425,2]
[374824801,1753451450342,-159.9857365,0.00023425,2]
[374824802,1753451450352,-178.3051933,0.00023425,2]
[374824805,1753451450362,-159.9857365,0.00023425,2]
[374824806,1753451450371,-178.3051933,0.00023425,2]
[374824808,1753451450380,-159.9857365,0.00023425,2]
[374824810,1753451450391,-178.3051933,0.00023425,2]
[374824812,1753451450400,-153.0,0.00023425,2]
[374824814,1753451450409,-159.9857365,0.00023425,2]
[374824816,1753451450419,-178.3051933,0.00023425,2]
[374824818,1753451450428,-153.0,0.00023425,2]
[374824820,1753451450437,-159.8979755,0.00023425,2]
[374824822,1753451450447,-178.3051933,0.00023425,2]
[374824824,1753451450456,-178.3051933,0.00023425,2]
[374824826,1753451450466,-319.971473,0.00023425,2]
[374824828,1753451450479,-178.3051933,0.00023425,2]
[374824830,1753451450488,-153.0,0.00023425,2]
[374824832,1753451450498,-577.7720337,0.00023425,2]
[374824834,1753451450508,-178.3051933,0.00023425,2]
[374824836,1753451450517,-178.3051933,0.00023425,2]
[374824838,1753451450527,-178.3051933,0.00023425,2]
[374824840,1753451450540,-178.3051933,0.00023425,2]
[374824842,1753451450550,-153.0,0.00023425,2]
[374824844,1753451450559,-177.8731897,0.00023425,2]
[374824846,1753451450570,-786.36,0.00023467,2]
[374824848,1753451450579,-320.47,0.0002347,2]
[374824850,1753451450589,-151.0,0.000235,10]
[374824852,1753451450599,-160.77777081,0.00023507,2]
[374824854,1753451450609,-3301.33283955,0.00023521,2]
[374824856,1753451450619,-176.527874,0.00023561,7]
[374824858,1753451450628,-151.0,0.00023561,7]
[374824860,1753451450637,-151.0,0.00023561,7]
[374824862,1753451450647,-989.91,0.00023561,2]
[374824864,1753451450656,-1659.53,0.00023561,2]
[374824866,1753451450666,-860.15,0.00023561,2]
[374824868,1753451450676,-1712.48,0.00023561,2]
[374824869,1753451450685,-565.62,0.00023561,2]
[374824871,1753451450696,-2558.67,0.00023561,2]
[374824873,1753451450706,-2196.36,0.00023561,2]
[374824875,1753451450715,-2412.9,0.00023561,2]
[374824877,1753451450730,-1466.29,0.00023561,2]
[374824879,1753451450739,-2067.97,0.00023561,2]
[374824881,1753451450749,-638.63,0.00023561,2]
[374824883,1753451450758,-1222.3,0.00023561,2]
[374824885,1753451450767,-1635.82,0.00023561,2]
[374824887,1753451450777,-1300.64,0.00023561,2]
[374824889,1753451450787,-460.0,0.00023561,2]
[374824891,1753451450797,-151.0,0.00023561,7]
[374824893,1753451450808,-460.0,0.00023561,2]
[374824895,1753451450817,-2098.03,0.00023561,2]
[374824897,1753451450827,-786.36,0.00023567,6]
[374824899,1753451450836,-274.2,0.00023612,6]
[374824901,1753451450846,-183.29398073,0.00023644,2]
[374824903,1753451450855,-160.77777081,0.00023644,2]
[374824905,1753451450865,-982.95,0.00023652,3]
[374824907,1753451450875,-786.36,0.00023667,5]
[374824909,1753451450884,-169.33794127,0.00023699,2]
[374824911,1753451450894,-156.009355,0.00023739,2]
[374824913,1753451450904,-982.95,0.00023752,6]
[374824915,1753451450914,-183.29398073,0.00023753,2]
[374824917,1753451450923,-786.36,0.00023767,5]
[374824919,1753451450933,-160.77777081,0.00023781,2]
[374824921,1753451450943,-4986.17310539,0.00023819,2]
[374824923,1753451450952,-12500.0,0.0002382,7]
[374824925,1753451450961,-151.0,0.00023821,7]
[374824927,1753451450971,-151.368115,0.00023821,7]
[374824929,1753451450985,-598.439274,0.00023821,7]
[374824931,1753451450995,-598.439274,0.00023821,7]
[374824933,1753451451004,-151.0,0.00023821,7]
[374824935,1753451451013,-151.0,0.00023828,7]
[374824937,1753451451022,-197.10721606,0.00023828,7]
[374824938,1753451451031,-151.0,0.00023828,7]
[374824940,1753451451041,-151.0,0.00023828,7]
[374824942,1753451451051,-175.52964,0.00023828,7]
[374824944,1753451451060,-12500.0,0.00023828,7]
[374824946,1753451451070,-151.0,0.00023835,7]
[374824948,1753451451079,-151.0,0.00023835,7]
[374824950,1753451451088,-151.0,0.00023835,7]
[374824952,1753451451098,-151.239948,0.00023835,7]
[374824954,1753451451107,-151.0,0.00023835,7]
[374824956,1753451451117,-151.0,0.00023835,7]
[374824958,1753451451127,-989.91,0.00023835,2]
[374824959,1753451451136,-151.0,0.00023835,7]
[374824960,1753451451146,-151.0,0.00023835,7]
[374824961,1753451451156,-1659.53,0.00023835,2]
[374824962,1753451451165,-860.15,0.00023835,2]
[374824963,1753451451175,-1712.48,0.00023835,2]
[374824964,1753451451184,-565.62,0.00023835,2]
[374824965,1753451451194,-2558.67,0.00023835,2]
[374824966,1753451451204,-2196.36,0.00023835,2]
[374824967,1753451451214,-2412.9,0.00023835,2]
[374824968,1753451451223,-1466.29,0.00023835,2]
[374824969,1753451451235,-2067.97,0.00023835,2]
[374824970,1753451451245,-638.63,0.00023835,2]
[374824971,1753451451255,-1222.3,0.00023835,2]
[374824972,1753451451265,-1635.82,0.00023835,2]
[374824973,1753451451274,-1300.64,0.00023835,2]
[374824974,1753451451284,-460.0,0.00023835,2]
[374824975,1753451451293,-460.0,0.00023835,2]
[374824976,1753451451303,-2098.03,0.00023835,2]